Cogmind - Beta 16 @@@ ROGUE MODE // 2026.01.02 @ 16:42:05 Player: chebyrekser Result: Destroyed by G-73 Enforcer with Phase Gun Performance ------------- Evolutions (9) 4500 Regions Visited (25) 5000 Robots Destroyed (360) 1800 Value Destroyed (19343) 19343 Prototype IDs (37) 740 Alien Tech Used (0) 0 Bonus (13005) 13005 TOTAL SCORE: 44388 Bonus ------- High Alert Combat Kills 2653 Follower Combat Kills 1255 Registered with UFD 300 Met Optimus in HQ 500 Destroyed Z-Imprinter 1000 Met Zhirov 300 Met Warlord at Base 500 MAIN.C Attacked Warlord 500 Warlord Defense Kills 214 A7 Reached Mainframe 300 Met R17 at Cetus 500 Read Decrypted Archives 300 Destroyed MAIN.C Guards 500 Met MAIN.C 5000 Friendly Fire -817 Cogmind --------- Core Integrity 0/1600 Matter 300/300 Energy 49/100 System Corruption 81% Temperature Cool (9) Movement Core (50) Location -1/Command Parts ------- > --- POWER (4) -------- (None) > --- PROPULSION (8) --- (None) > --- UTILITY (10) ----- Experimental Cloaking Device > --- WEAPON (3) ------- (None) > --- INVENTORY (5) ---- Biometal Leg Combat Linear Gravjet Improved Focal Shield Compact HERF Cannon Gamma Bomb Array Peak State ------------ > --- POWER ------------ Micro Antimatter Reactor Quantum Reactor Quantum Reactor Light Quantum Reactor > --- PROPULSION ------- Advanced Medium Treads Biometal Medium Treads Biometal Heavy Treads Advanced Heavy Siege Treads Advanced Heavy Siege Treads > --- UTILITY ---------- Experimental Power Amplifier Advanced Heat Sink Advanced Cooling System Huge Storage Unit Long-range Sensor Array Advanced Signal Interpreter Long-range Terrain Scanner Advanced Transmission Jammer Experimental Cloaking Device Improved Focal Shield > --- WEAPON ----------- Enhanced Nova Cannon Linear Accelerator Vortex Lance > --- INVENTORY -------- Vortex Chain Reactor Armored Heavy Treads Improved Heavy Siege Treads Combat Gravmag System Combat Linear Gravjet Combat Linear Gravjet Advanced Heat Sink Advanced Heat Sink Matter Compressor Zionite Metafield Generator Experimental Reaction Control System Advanced EM Shield Advanced Point Defense System Long-range Tractor Beam Hacking Drone Bay Compact HERF Cannon Nova Cannon Nova Cannon Hypervelocity Mass Driver Omega Cannon Gamma Bomb Array [Rating: 213] Favorites ----------- Power Neutrino Core Engine Light Angular Momentum Engine Power Core Neutrino Core Reactor Quantum Reactor Propulsion Carbon-fiber Leg Treads Light Treads Leg Carbon-fiber Leg Wheel Wheel Hover Unit Zionite Glidesys II Flight Unit Improved Diametric Drive Utility High-capacity Storage Unit Device Advanced Heat Sink Storage High-capacity Storage Unit Processor Advanced Signal Interpreter Hackware System Shield Protection Improved Medium Armor Plating Weapon KE Penetrator Energy Gun Variable Charge Gun Energy Cannon Nova Cannon Ballistic Gun KE Penetrator Ballistic Cannon Bore Cannon Launcher Improved Proton Missile Launcher Special Weapon Junk Cannon Impact Weapon Heavy Flail Slashing Weapon Great Axe Piercing Weapon Vortex Lance Build | -11 -10 -10 -9 -9 -6 -6 -6 -6 -6 -5 -5 -5 -5 -5 -4 -4 -4 -4 -4 -4 -3 -3 -2 -1 -1 ------- Run | Yrd Mat Sub Rec Scr Fac Low Low Zio Dee Pro Fac Upp Upp War Pro Fac Ext Cet Arc Hub Res Tes Res Acc Com Slots Evolved 18 | . . . . . 8 . . . . . 2 . . . . 2 . . . . 2 . 2 2 . Power 3 | . . . . . . . . . . . 1 . . . . . . . . . . . 1 1 . Propulsion 6 | . . . . . 4 . . . . . . . . . . 2 . . . . . . . . . Utility 8 | . . . . . 4 . . . . . . . . . . . . . . . 2 . 1 1 . Weapon 1 | . . . . . . . . . . . 1 . . . . . . . . . . . . . . Parts Attached 329 | 7 9 3 1 12 47 7 1 8 30 2 17 3 1 11 2 12 27 7 . 9 12 14 12 25 50 Power 43 | 1 2 . . 3 4 . . . 3 1 3 . . . . 1 4 2 . 1 3 2 2 4 7 Engine 14 | 1 2 . . 3 4 . . . 2 . 1 . . . . . . . . . . . . . 1 Core 10 | . . . . . . . . . . 1 2 . . . . 1 3 . . 1 1 . . . 1 Reactor 19 | . . . . . . . . . 1 . . . . . . . 1 2 . . 2 2 2 4 5 Propulsion 100 | 2 2 . 1 1 23 3 . 1 6 1 5 1 . 2 1 4 12 3 . 2 3 3 3 6 15 Treads 45 | 2 . . . 1 12 . . 1 1 . . . . . . . 1 3 . 2 3 3 3 6 7 Leg 42 | . . . . . 6 2 . . 1 1 5 1 . 2 1 4 11 . . . . . . . 8 Wheel 8 | . 2 . 1 . 4 1 . . . . . . . . . . . . . . . . . . . Hover 4 | . . . . . . . . . 4 . . . . . . . . . . . . . . . . Flight 1 | . . . . . 1 . . . . . . . . . . . . . . . . . . . . Utility 110 | 2 2 1 . 4 12 3 . 4 13 . 6 2 1 5 1 6 . 1 . 3 3 6 5 10 20 Device 59 | 1 1 . . 3 6 1 . 1 6 . 3 2 . 4 1 3 . . . . 3 3 2 9 10 Storage 7 | 1 1 . . . 1 . . 2 1 . . . . . . . . . . 1 . . . . . Processor 7 | . . . . . 1 . . 1 . . 1 . . . . 1 . . . . . . . 1 2 Hackware 1 | . . . . . . . . . . . . . . . . . . . . . . 1 . . . Protection 36 | . . 1 . 1 4 2 . . 6 . 2 . 1 1 . 2 . 1 . 2 . 2 3 . 8 Artifact . | . . . . . . . . . . . . . . . . . . . . . . . . . . Weapon 76 | 2 3 2 . 4 8 1 1 3 8 . 3 . . 4 . 1 11 1 . 3 3 3 2 5 8 Energy Gun 15 | 1 . . . 2 1 . . 1 4 . . . . 1 . . 2 . . . 1 . . . 2 Energy Cannon 9 | . . . . . 2 . 1 . . . 1 . . . . . 1 . . . . 1 1 1 1 Ballistic Gun 30 | 1 2 1 . 2 3 1 . 1 . . 2 . . 1 . 1 4 . . 3 . 2 1 1 4 Ballistic Cannon 9 | . . . . . . . . . 1 . . . . . . . 4 . . . . . . 3 1 Launcher 5 | . . 1 . . 1 . . . 2 . . . . . . . . . . . 1 . . . . Special Weapon 4 | . 1 . . . . . . 1 1 . . . . 1 . . . . . . . . . . . Impact Weapon 2 | . . . . . 1 . . . . . . . . 1 . . . . . . . . . . . Slashing Weapon 1 | . . . . . . . . . . . . . . . . . . . . . 1 . . . . Piercing Weapon 1 | . . . . . . . . . . . . . . . . . . 1 . . . . . . . Special Melee Weapon . | . . . . . . . . . . . . . . . . . . . . . . . . . . Unidentified Prototypes 27 | . . . . . 2 . . 1 12 . . . . 5 . . . 3 . 1 . 1 . . 2 Corrupted Parts 5 | . . . . . . . . . . . . . . . . . . 1 . . . . . . 4 System Corruption 34 | . . . . . . . . . . . . . . . . . . 8 . . . . . . 26 Parts Lost 110 | . 1 . . . 25 . . . 10 . 1 1 2 . . . 5 . . 7 2 . 6 6 44 Power 16 | . 1 . . . 4 . . . . . . . . . . . 1 . . 2 . . . 1 7 Propulsion 34 | . . . . . 10 . . . 4 . . . 1 . . . 1 . . 2 1 . . . 15 Utility 39 | . . . . . 8 . . . 4 . 1 1 . . . . 2 . . 2 . . 6 2 13 Weapon 21 | . . . . . 3 . . . 2 . . . 1 . . . 1 . . 1 1 . . 3 9 Highest Loss Streak 17 | . 1 . . . 7 . . . 8 . 1 1 1 . . . 2 . . 6 1 . 3 3 17 To Critical Strikes . | . . . . . . . . . . . . . . . . . . . . . . . . . . Average Backups 19 | 5 14 24 24 23 20 17 18 18 15 18 19 19 19 19 19 19 18 18 18 18 22 23 21 20 19 Power 1 | . 1 2 2 2 1 2 2 2 2 2 1 1 1 1 1 1 1 2 2 2 3 2 1 1 1 Propulsion 4 | 3 4 6 6 7 7 3 4 3 1 . 2 3 3 3 6 5 5 5 6 5 5 5 4 4 3 Utility 7 | . 4 8 8 6 2 4 3 3 5 9 9 9 9 9 9 9 9 7 7 7 7 8 8 6 9 Weapon 5 | . 3 7 7 7 8 7 7 7 5 6 6 6 5 4 3 3 3 3 3 3 6 6 7 7 5 Tool/Special . | . . . . . . . . . . . . . . . . . . . . . . . . . . Unused Backups 76 | . 4 3 1 12 7 . . 2 14 . 1 1 . 1 . 1 2 4 . 1 3 6 4 1 8 Power 13 | . . . . 3 . . . . 4 . 1 1 . . . . . 1 . . . 2 . . 1 Propulsion 17 | . 1 1 . 2 . . . . 2 . . . . . . 1 . . . . . 2 2 . 6 Utility 24 | . 1 1 . 5 4 . . . 6 . . . . 1 . . 1 1 . . 1 1 1 . 1 Weapon 22 | . 2 1 1 2 3 . . 2 2 . . . . . . . 1 2 . 1 2 1 1 1 . Tool/Special . | . . . . . . . . . . . . . . . . . . . . . . . . . . Average Slot Usage (%) 87 | . 97 100 98 80 86 93 99 93 74 99 91 93 88 93 94 93 97 81 78 77 79 84 78 84 80 Engine 4 | . 13 14 14 14 5 6 6 6 5 5 3 . . . . . . . . . . . . . . Core 2 | . . . . . . . . . . . 5 11 11 11 11 10 7 6 5 8 . . . . . Reactor 2 | . . . . . . . . . . . . . . . . . 2 3 5 1 8 9 12 15 11 Treads 8 | . 19 16 4 . 28 . . 2 . . . . . . . . 1 14 21 20 21 22 17 18 11 Leg 15 | . . . . . 3 31 33 33 25 26 25 35 29 33 35 41 38 12 . . . . . . 10 Wheel 3 | . 8 11 23 28 5 4 6 3 . . . . . . . . . . . . . . . . . Device 16 | . 12 12 14 6 17 19 19 16 6 19 14 16 17 20 17 14 14 15 15 14 19 22 21 30 26 Storage 6 | . 14 14 14 14 6 6 6 6 5 6 5 5 5 5 5 5 5 5 5 5 4 4 4 4 3 Processor 1 | . . . . . 1 . . . . . . . . . . . 5 5 5 5 4 4 4 4 2 Protection 7 | . . 1 . . 4 10 13 12 20 13 12 11 11 5 5 5 4 5 5 5 4 4 5 . 1 Energy Gun 1 | . 4 . . . 3 . . . 2 . . . . . . . 2 . . . . 2 . . . Energy Cannon 1 | . . . . . 1 5 6 3 . . 4 5 4 . . 3 2 . . . . 3 2 5 3 Ballistic Gun 6 | . 19 27 26 16 5 5 2 . . . 1 . . 8 16 11 9 . . 3 4 2 6 3 3 Ballistic Cannon 1 | . . . . . . . . . . 5 . . . . . . . 11 15 10 4 2 1 2 2 Special Weapon 1 | . 3 . . . . . . 2 3 . 4 5 5 1 . . . . . . . . . . . Peak Build Rating 213 | 7 9 10 10 17 61 64 63 67 81 84 101 96 97 113 116 140 139 152 152 158 159 176 192 213 211 Average Rating 90 | 5 7 9 9 9 44 60 62 62 59 80 92 92 92 103 110 126 134 140 152 151 149 164 181 201 172 On Entrance 90 | . 7 9 10 7 16 41 62 62 64 81 84 94 95 93 113 110 138 133 152 152 108 155 172 181 213 Avg Prop Armor Cover (%) 6 | . 12 11 12 5 10 1 1 2 5 2 2 . . . . . 6 5 . . 7 . . . 30 Naked Turns 48 | . . . . . . . . . . . . . . . . . . . . . . . . . 48 Heaviest Build 210 | 12 88 90 90 95 122 80 79 81 81 79 112 112 111 117 117 121 131 137 129 161 168 175 195 203 210 Greatest Support 315 | 40 40 40 20 20 168 81 81 81 81 61 96 101 101 131 131 196 196 310 310 315 291 290 290 300 300 Greatest Overweight (x) 10 | . 8 8 8 9 10 1 . . 2 1 2 1 1 1 . . . 1 . . . . . . 4 Average Overweight (x) 1 | . 2 7 4 4 1 . . . . . 1 1 . . . . . . . . . . . . . Largest Inventory Capacity 25 | 8 25 25 25 25 25 20 20 20 20 20 20 20 20 20 20 20 20 20 20 25 25 25 25 25 25 Average Capacity 21 | 7 18 25 25 25 24 20 20 20 18 20 20 20 20 20 20 20 20 20 20 23 25 25 25 25 23 Most Carried 25 | 8 25 25 25 25 25 20 20 20 20 20 20 20 20 20 20 20 20 20 20 25 25 25 25 25 25 Average Carried 20 | 5 14 24 24 24 23 19 19 19 15 19 19 19 19 19 20 19 19 19 20 20 24 24 24 24 21 Final Capacity 25 | 8 25 25 25 25 20 20 20 20 20 20 20 20 20 20 20 20 20 20 20 25 25 25 25 25 5 Final Carried 25 | 8 24 25 25 25 20 20 20 20 20 20 20 20 20 20 20 20 20 20 20 22 25 25 23 25 5 Class Distribution -------------------- 38% | Scavenger-Mutant 25% | Scavenger-Tank 23% | Mutant 7% | Generator-Tank Dominant Class ---------------- Mutant | -10/Materials Mutant | -10/Subcaves Mutant | -9/Recycling Mutant | -9/Scraptown Mutant | -6/Factory Scavenger-Mutant | -6/Lower Caves Scavenger-Mutant | -6/Lower Caves Scavenger-Mutant | -6/Zion Scavenger-Mutant | -6/Deep Caves Scavenger-Mutant | -5/Proximity Caves Scavenger-Tank | -5/Factory Scavenger-Tank | -5/Upper Caves Scavenger-Tank | -5/Upper Caves Scavenger-Mutant | -5/Warlord Scavenger-Tank | -4/Proximity Caves Scavenger-Tank | -4/Factory Scavenger-Tank | -4/Extension Scavenger-Tank | -4/Cetus Scavenger-Tank | -4/Archives Scavenger-Tank | -4/Hub_04(d) Scavenger-Mutant | -3/Research Scavenger-Tank | -3/Testing Scavenger-Tank | -2/Research Generator-Tank | -1/Access Generator-Tank | -1/Command Resources | -11 -10 -10 -9 -9 -6 -6 -6 -6 -6 -5 -5 -5 -5 -5 -4 -4 -4 -4 -4 -4 -3 -3 -2 -1 -1 ----------- Run | Yrd Mat Sub Rec Scr Fac Low Low Zio Dee Pro Fac Upp Upp War Pro Fac Ext Cet Arc Hub Res Tes Res Acc Com Matter Collected 18516 | 297 601 317 186 200 1681 244 . 134 805 252 296 105 161 295 222 479 1767 424 . 2060 447 1305 1152 1804 3282 Remotely 131 | . . . . . . . . . . . . . . . . . . . . . . . . . 131 Salvage Created 21699 | 185 735 160 297 . 2537 207 . . 505 146 332 44 398 148 90 946 1871 494 . 1243 500 1158 1611 2689 5403 Parts 900 | 16 39 18 11 . 89 5 . . 6 9 13 3 3 7 5 52 66 26 . 48 40 62 75 123 184 Haulers Intercepted 3 | . 1 . . . 1 . . . . . . . . . . . . . . 1 . . . . . Recyclers Shooed 26 | 1 6 . . . 6 . . . . . 2 . . . . . 7 . . . 2 2 . . . Parts Field Recycled . | . . . . . . . . . . . . . . . . . . . . . . . . . . Retrieved Matter . | . . . . . . . . . . . . . . . . . . . . . . . . . . Parts Self-Destructed 78 | . . 17 . . . 7 . . . 27 . 10 . . 17 . . . . . . . . . . Prevented 4 | . . . . . . . . . . 3 . . 1 . . . . . . . . . . . . Parts Restored . | . . . . . . . . . . . . . . . . . . . . . . . . . . Kills | -11 -10 -10 -9 -9 -6 -6 -6 -6 -6 -5 -5 -5 -5 -5 -4 -4 -4 -4 -4 -4 -3 -3 -2 -1 -1 ------- Run | Yrd Mat Sub Rec Scr Fac Low Low Zio Dee Pro Fac Upp Upp War Pro Fac Ext Cet Arc Hub Res Tes Res Acc Com Combat Hostiles Destroyed 260 | . 9 7 . . 31 4 . . 4 5 5 1 6 2 3 13 24 8 . 20 7 12 18 32 49 Melee 10 | . . . . . 1 . . . . . . . . . . . . . . . 4 3 . . 2 Guns 82 | . 9 3 . . 19 1 . . . . 2 . . 2 1 12 15 . . 4 1 2 6 3 2 Cannons 89 | . . . . . 3 . . . . . . 1 1 . . 1 7 8 . 16 2 7 3 23 17 AOE 40 | . . 4 . . 5 3 . . 2 5 . . 2 . 2 . . . . . . . 5 1 11 Classes Destroyed 23 | 3 5 2 . . 5 . . . 2 . 1 . . 1 . . 1 . . . . . 1 1 1 Worker 20 | 1 2 . . . 6 . . . . . . . . . . 4 1 . . . . . 2 1 3 Builder 17 | . 1 . . . 4 . . . . . . . . . . 3 2 . . 1 2 . . 4 . Tunneler 7 | 5 1 . . . . . . . . . . . . . . 1 . . . . . . . . . Hauler 3 | . 1 . . . 1 . . . . . . . . . . . . . . 1 . . . . . Recycler 28 | 1 5 . 4 . 6 . . . . . . . . . . . 3 . . . . 3 1 2 3 Mechanic 2 | . . . . . . . . . . . . . . . . . . . . . . . . . 2 Operator 2 | . . . . . 1 . . . . . . . . . . . . . . 1 . . . . . Turret 2 | . . 2 . . . . . . . . . . . . . . . . . . . . . . . Watcher 17 | . 3 . . . 3 . . . . . 1 . . . . . 2 . . 2 . 2 . 3 1 Swarmer 45 | . 6 4 . . 5 1 . . . 5 . . 4 . 2 . 9 . . . . . 4 . 5 Grunt 75 | . 3 . . . 14 2 . . . . . . . . 1 6 13 . . 12 . . . 12 12 Brawler 4 | . . . . . 2 . . . . . . . . 1 . . . . . . . . . 1 . Duelist 2 | . . . . . 1 . . . . . . . . . . . . . . . . . . . 1 Protector 2 | . . . . . . . . . . . . . . 1 . . . . . . . . . . 1 Sentry 18 | . . . . . 3 1 . . . . 2 . 1 . . 1 1 . . 2 2 . 1 . 4 Specialist 2 | . . . . . . . . . . . . . . . . . . . . . . . . 2 . Hunter 23 | . . . . . . . . . . . 1 1 . . . 2 . . . 2 2 1 6 1 7 Programmer 64 | . . . . . 6 . . . . . 2 . 1 . . 4 . . . 3 3 11 4 15 15 Heavy 3 | . . . . . . . . . . . . . . . . . . . . . . . 2 1 . Behemoth 3 | . . . . . . . . . . . . . . . . . 1 . . 1 . . 1 . . Cetus Guard 8 | . . . . . . . . . . . . . . . . . . 8 . . . . . . . M Guard 2 | . . . . . . . . . . . . . . . . . . . . . . . . . 2 Combat Programmer 2 | . . . . . . . . . . . . . . . . . . . . . . . . . 2 Subdweller 3 | . . 3 . . . . . . . . . . . . . . . . . . . . . . . Packrat 3 | . . . . . . 1 . . . . . . 2 . . . . . . . . . . . . Assembled 2 | . . . . . . . . . 2 . . . . . . . . . . . . . . . . Golem 2 | . . . . . . . . . 2 . . . . . . . . . . . . . . . . Wasp 1 | . . . . . . . . . 1 . . . . . . . . . . . . . . . . Thug 1 | . . . . . . . . . 1 . . . . . . . . . . . . . . . . Butcher 1 | . . . . . . . . . . . . . . . . . 1 . . . . . . . . Guerrilla 1 | . . . . . . . . . . . . . . . . . 1 . . . . . . . . Best Kill Streak 12 | 5 3 5 2 . 7 3 . . 2 4 2 1 4 1 2 12 4 4 . 9 3 5 7 8 6 Combat Bots Only 8 | . 3 4 . . 4 3 . . 2 4 2 1 4 1 2 8 3 4 . 8 3 5 6 8 6 Max Kills in Single Turn 4 | 1 2 2 1 . 2 2 . . 3 4 1 1 1 1 2 2 2 1 . 2 1 1 3 2 2 Gunslinging 1 | . . . . . . . . . . . . . . . . . 1 . . . . . . . . Exploded 4 | . . 2 . . 2 2 . . 2 4 . . 1 . 2 . . . . . . . 3 1 2 Melee 1 | . . . . . 1 . . . . . . . . . . . . . . . 1 1 . . 1 Uniques/NPCs Destroyed 1 | . . . . . . . . . 1 . . . . . . . . . . . . . . . . Z-Imprinter (-6/Deep Caves) Combat | -11 -10 -10 -9 -9 -6 -6 -6 -6 -6 -5 -5 -5 -5 -5 -4 -4 -4 -4 -4 -4 -3 -3 -2 -1 -1 -------- Run | Yrd Mat Sub Rec Scr Fac Low Low Zio Dee Pro Fac Upp Upp War Pro Fac Ext Cet Arc Hub Res Tes Res Acc Com Hostile Shots Fired 2595 | . 49 72 . . 413 22 . . 72 2 34 25 50 4 19 142 182 22 . 255 72 99 254 229 578 Missed 678 | . 8 24 . . 118 11 . . 32 . 10 7 13 3 6 33 64 7 . 54 20 17 57 63 131 Intercepted 3 | . . . . . . . . . . . . . . . . . . . . . . . . . 3 Deflected 26 | . . . . . . . . . . . . . . . . 21 5 . . . . . . . . Hits 1917 | . 41 48 . . 295 11 . . 40 2 24 18 37 1 13 109 118 15 . 201 52 82 197 166 447 Melee 21 | . . . . . 13 . . . 1 . . . . . 2 . . . . . . . . . 5 Projectile 1896 | . 41 48 . . 282 11 . . 39 2 24 18 37 1 11 109 118 15 . 201 52 82 197 166 442 AOE 24 | . . . . . . . . . . . . . . . . . . . . . . . . 2 22 Critical Strikes 83 | . 2 1 . . 12 . . . 1 1 1 1 . . . 12 3 . . 10 2 8 4 7 18 Actively Blocked 16 | . . . . . . . . . . . . . . . . . . . . . . . . . 16 Part Disruptions 23 | . . . . . . . . . . . 2 . . . . . . . . . 1 1 . . 19 Actively Blocked 2 | . . . . . . . . . . . . . . . . . . . . . . . . . 2 Damage Taken 41263 | . 398 238 . . 4442 136 . . 1482 64 556 292 850 88 216 1424 2172 338 . 4960 700 454 4872 4240 13341 Core 2841 | . 61 104 . . 333 34 . . 27 . 20 38 80 26 . 129 67 . . 111 61 23 118 75 1534 Absorbed by Shields 3585 | . . . . . 108 . . . . . . . . 27 66 339 444 104 . 681 539 442 835 . . Reduced by Siege Mode 2834 | . . . . . . . . . . . . . . . . . . 11 . 390 . 49 785 473 1126 Redirected to Shielding 487 | . . . . . 54 . . . 107 . . . . . . . . . . . . . 127 . 199 Ignored by Resistances 2954 | . . . . . . . . . . . . . . . . . . . . . . 836 . 744 1374 Regen/Repaired (Parts) 220 | . . . . . . . . . . . 120 . . 100 . . . . . . . . . . . Core Remaining (%) 75 | 100 . . . 34 . . . . . 53 . . . . 83 . . . . 73 . 93 91 . . Volleys Fired 1337 | 27 79 28 8 . 156 23 5 6 53 2 27 12 40 17 15 60 99 13 . 74 13 60 76 121 323 Largest 3 | 2 2 2 2 . 2 2 1 1 2 1 3 1 1 2 3 3 3 3 . 3 3 3 3 3 3 Hottest 287 | 70 100 50 50 . 110 110 80 . 255 43 164 98 98 66 99 166 173 164 . 156 139 244 183 287 287 Shots Fired 2526 | 54 154 53 15 . 281 39 4 6 54 2 36 13 40 31 39 123 249 36 . 191 37 111 167 266 525 Gun 1352 | 54 147 51 15 . 215 13 . . 42 . 10 . . 28 37 85 187 1 . 53 13 34 100 50 217 Cannon 1051 | . . . . . 54 22 4 . . . 11 8 21 . 2 38 62 35 . 138 24 77 61 204 290 Launcher 64 | . . 2 . . 12 4 . . 4 2 . . 4 . . . . . . . . . 6 12 18 Special 59 | . 7 . . . . . . 6 8 . 15 5 15 3 . . . . . . . . . . . Kinetic 1539 | 27 134 51 15 . 167 13 . . . . 10 . . 28 36 75 163 35 . 173 37 55 100 129 291 Thermal 772 | 27 20 . . . 102 22 4 . 42 . 11 8 21 . 2 38 86 . . . . 47 51 121 170 Explosive 20 | . . 2 . . 12 4 . . 2 . . . . . . . . . . . . . . . . Electromagnetic 113 | . . . . . . . . . 2 2 . . 4 . . . . . . . . 9 16 16 64 Impact 49 | . . . . . . . . 6 7 . 15 5 15 1 . . . . . . . . . . . Entropic 30 | . . . . . . . . . . . . . . . 1 10 . 1 . 18 . . . . . Robot Hit Streak 49 | 5 7 9 8 . 21 2 . . 10 . 8 6 8 7 5 12 13 5 . 9 9 6 37 40 49 Robot Miss Streak 8 | 3 4 3 1 . 5 6 . . 3 . 2 2 2 4 3 5 8 5 . 4 3 4 4 3 8 Penetration Max 1 | . . . . . 1 . . . . . . . . 1 . 1 1 1 . 1 1 . 1 1 1 Secondary Targets 13 | . 2 . . . 4 . . . . . . . . 1 . 4 2 . . . . . . . . Max Gunslinging Chain 2 | . 1 . . . 1 . . . . . . . . 1 . 1 2 . . . . . . . . Shots Hit Robots 1616 | 31 89 35 10 . 197 8 . . 31 . 23 7 24 14 19 69 138 15 . 103 36 63 121 153 430 Core Hits 794 | 11 35 15 7 . 103 11 . . 19 7 7 1 4 9 7 45 64 11 . 53 16 22 58 86 203 Critical Kills 51 | . . . . . 9 . . . . . . . . 1 . 1 2 8 . 16 3 7 1 1 2 Critical Parts Destroyed 85 | . . . . . 13 . . . . . 2 1 2 . 2 1 2 1 . 24 7 11 3 2 14 Critical Strikes 190 | 2 . . . . 29 . . . 1 . 2 1 2 1 2 2 7 11 . 53 12 22 6 6 31 Burn 11 | 2 . . . . 6 . . . . . . . . . . . 3 . . . . . . . . Meltdown 7 | . . . . . 1 . . . . . . . . . . . 1 . . . . 1 1 1 2 Destroy 145 | . . . . . 18 . . . . . . . . 1 1 2 3 11 . 53 10 17 5 2 22 Blast 8 | . . . . . . . . . . . . . . . . . . . . . . . . 3 5 Corrupt 3 | . . . . . . . . . . . . . . . . . . . . . . 1 . . 2 Smash 10 | . . . . . 4 . . . 1 . 2 1 2 . . . . . . . . . . . . Sever 2 | . . . . . . . . . . . . . . . . . . . . . 2 . . . . Detonate 1 | . . . . . . . . . . . . . . . 1 . . . . . . . . . . Sunder 3 | . . . . . . . . . . . . . . . . . . . . . . 3 . . . Melee Attacks 101 | . . . . . 24 1 2 . 1 . . . . . . . . 1 . . 30 19 . 4 19 Impact 28 | . . . . . 24 1 2 . 1 . . . . . . . . . . . . . . . . Slashing 38 | . . . . . . . . . . . . . . . . . . . . . 30 8 . . . Piercing . | . . . . . . . . . . . . . . . . . . . . . . . . . . Entropic 35 | . . . . . . . . . . . . . . . . . . 1 . . . 11 . 4 19 Sneak Attacks 8 | . . . . . 2 . . . . . . . . . . . . . . . 3 3 . . . Combat Hostiles . | . . . . . . . . . . . . . . . . . . . . . . . . . . Follow-up Attacks . | . . . . . . . . . . . . . . . . . . . . . . . . . . Damage Inflicted 59090 | 350 978 648 175 . 5630 405 . . 1330 154 1039 369 1560 569 521 2666 4178 442 . 3443 1436 2593 4396 7680 18528 Guns 21187 | 350 978 522 175 . 2473 113 . . 564 . 225 . . 569 439 2019 2806 87 . 1438 252 507 2010 1032 4628 Cannons 24375 | . . . . . 1050 80 . . . . 186 99 365 . . 551 1372 355 . 1982 252 1206 1634 5110 10133 Explosions 7742 | . . 126 . . 1351 212 . . 267 154 14 . 420 . 82 96 . . . . . 50 752 1538 2680 Melee 3488 | . . . . . 696 . . . . . . . . . . . . . . . 932 830 . . 1030 Ramming 140 | . . . . . 60 . . . . . . . . . . . . . . 23 . . . . 57 Kinetic 25726 | 139 865 522 175 . 1910 113 . . . . 225 . . 569 387 1490 2416 355 . 2478 504 778 2010 2938 7852 Thermal 17530 | 211 113 . . . 1613 80 . . 564 . 186 99 413 . 82 609 1762 . . . . 907 1433 3511 5947 Explosive 1985 | . . 126 . . 1351 212 . . 187 . . . . . . . . . . . . . 109 . . Electromagnetic 6453 | . . . . . . . . . 80 154 14 . 372 . . 38 . . . . . 78 844 1231 3642 Impact 2854 | . . . . . 696 . . . 499 . 614 270 775 . . . . . . . . . . . . Slashing 1184 | . . . . . . . . . . . . . . . . . . . . . 932 252 . . . Piercing . | . . . . . . . . . . . . . . . . . . . . . . . . . . Entropic 3218 | . . . . . . . . . . . . . . . 52 529 . 87 . 942 . 578 . . 1030 Highest Corruption 81 | . 4 4 4 4 19 19 19 19 . . 3 3 6 6 . 9 9 17 17 22 7 18 4 12 81 Average Corruption 11 | . 3 4 4 4 10 19 19 19 . . 2 3 4 6 . 7 9 14 17 17 5 13 3 6 33 Corruption Purged . | . . . . . . . . . . . . . . . . . . . . . . . . . . Corruption Blocked . | . . . . . . . . . . . . . . . . . . . . . . . . . . Effects 701 | . 32 28 19 . 95 28 15 1 . . 16 13 23 2 . 11 58 16 3 65 3 56 6 38 173 Message Errors 136 | . 6 4 4 . 16 8 3 1 . . 3 4 5 1 . 2 14 6 . 14 . 10 2 8 25 Matter Fused 178 | . 7 6 4 . 23 5 4 . . . 3 3 8 . . 5 17 5 . 18 2 19 . 9 40 Heat Flow Errors 79 | . 6 5 3 . 12 5 1 . . . 3 1 2 . . 1 8 . . 2 . 4 . 7 19 Energy Discharges 73 | . 6 6 2 . 9 2 1 . . . 3 1 2 . . . 8 . 1 6 1 5 2 3 15 Parts Rejected 13 | . . . . . 5 . 1 . . . . . . . . . 2 . . 1 . . . 1 3 Parts Fused 11 | . 1 . 2 . 2 . . . . . . . . . . . . . . . . 1 1 . 4 Data Loss (minor) 62 | . 3 6 2 . 8 . 3 . . . 3 2 3 1 . . 4 1 1 4 . 8 1 3 9 Data Loss (major) 24 | . . . 1 . 3 4 . . . . . 1 2 . . . 1 . 1 3 . 1 . 1 6 Misfires 20 | . 3 . . . 2 2 . . . . . 1 . . . 2 . . . 2 . 3 . 2 3 Alerts 11 | . . . . . 2 1 1 . . . . . 1 . . . . 1 . 2 . 1 . . 2 Misdirections 13 | . . . . . 3 . . . . . . . . . . . . . . 2 . . . . 8 Weapon Failures 81 | . . 1 1 . 10 1 1 . . . 1 . . . . 1 4 3 . 11 . 4 . 4 39 Overload Shots 2 | . . . . . . . . . 2 . . . . . . . . . . . . . . . . Overflow Damage 2497 | . . . . . 487 . . . 62 . 139 83 348 . . 35 30 . . 2 150 152 21 323 665 Projectiles 1346 | . . . . . 38 . . . 62 . 139 83 297 . . 29 30 . . 2 . 8 13 195 450 Explosions 263 | . . . . . 36 . . . . . . . 51 . . 6 . . . . . . 8 128 34 Melee 888 | . . . . . 413 . . . . . . . . . . . . . . . 150 144 . . 181 Knockbacks 67 | . . . . . 2 . . . 5 . 1 . 2 . . . . . . 18 . 4 . 18 17 Impact 10 | . . . . . 2 . . . 5 . 1 . 2 . . . . . . . . . . . . Kinetic 55 | . . . . . . . . . . . . . . . . . . . . 17 . 4 . 18 16 Secondary 2 | . . . . . . . . . . . . . . . . . . . . 1 . . . . 1 Self-Inflicted Damage 498 | . . . . . 171 . . . 31 . 29 . 120 . . . . . . . . . 19 126 2 Shots 18 | . . . . . 4 . . . 1 . 2 . 5 . . . . . . . . . 2 4 . Rammed 3 | . . . . . . . . . . . . . . . . . . . . 1 . . . . 2 Targets Rammed 17 | . . . . . 4 . . . . . . . . . . . . . . 2 . . . . 11 Kicked 13 | . . . . . 4 . . . . . . . . . . . . . . . . . . . 9 Crushed 1 | . . . . . . . . . . . . . . . . . . . . 1 . . . . . Highest Temperature 399 | 160 273 228 271 . 335 177 214 . 200 . 122 169 230 105 242 342 240 24 . 188 298 249 314 399 254 Average Temperature 70 | 55 69 96 140 . 94 74 134 . 89 . 37 45 37 49 85 80 45 8 . 54 102 76 52 86 92 Received Heat Transfer 4763 | . 117 108 . . 1089 . . . 360 . 54 37 63 7 25 176 253 . . 626 52 . 284 441 1071 Effects 2 | . . . . . . . . . . . . . . . . . . . . . . 1 . 1 . Shutdowns 1 | . . . . . . . . . . . . . . . . . . . . . . . . 1 . Interference 1 | . . . . . . . . . . . . . . . . . . . . . . 1 . . . Siege Activations 34 | . . . . . . . . . . . . . . . . . 1 1 . 6 . 5 2 9 10 Total Turns 893 | . . . . . . . . . . . . . . . . . 11 14 . 171 . 97 187 201 212 Longest Duration 104 | . . . . . . . . . . . . . . . . . 11 14 . 102 . 27 104 45 54 Martial Activations . | . . . . . . . . . . . . . . . . . . . . . . . . . . Shielding Activations 4 | . . . . . . . . . . . . . . . . 3 1 . . . . . . . . Total Turns 151 | . . . . . . . . . . . . . . . . 103 48 . . . . . . . . Longest Duration 51 | . . . . . . . . . . . . . . . . 51 48 . . . . . . . . Robots Disrupted 4 | . . . . . . . . . . 1 . . . . . . . . . . . . . 1 2 Combat Hostiles 4 | . . . . . . . . . . 1 . . . . . . . . . . . . . 1 2 Robots Corrupted 33 | . . . . . 3 . . . 2 . 3 . 3 . . . . . . . . . 3 5 14 Combat Hostiles 32 | . . . . . 2 . . . 2 . 3 . 3 . . . . . . . . . 3 5 14 Parts Fried 69 | . . . . . 10 . . . . 1 4 . 3 . . . 1 2 . . . . 9 6 33 Impact Corruptions 30 | . . . . . 13 . . . 3 . 5 1 8 . . . . . . . . . . . . Robots Melted 8 | . . . . . 1 . . . . . . . . . . . 2 . . . . 1 1 1 2 Combat Hostiles 5 | . . . . . 1 . . . . . . . . . . . 2 . . . . . 1 . 1 Parts Melted 33 | 2 . . . . 5 . . . 1 . . . . 1 . 1 7 . . . . 1 1 4 10 Heat Transferred 18278 | 777 333 . . . 3678 150 . . 761 . 250 150 650 . 100 800 2832 . . . . 753 1147 2840 3057 Parts Sabotaged . | . . . . . . . . . . . . . . . . . . . . . . . . . . Parts Stolen . | . . . . . . . . . . . . . . . . . . . . . . . . . . Parts Stripped . | . . . . . . . . . . . . . . . . . . . . . . . . . . Power Chain Reactions 14 | . . . . . . . . . . 1 . . 1 . . 1 . . . . . 1 3 5 2 Alert | -11 -10 -10 -9 -9 -6 -6 -6 -6 -6 -5 -5 -5 -5 -5 -4 -4 -4 -4 -4 -4 -3 -3 -2 -1 -1 ------- Run | Yrd Mat Sub Rec Scr Fac Low Low Zio Dee Pro Fac Upp Upp War Pro Fac Ext Cet Arc Hub Res Tes Res Acc Com Maximum Alert Level 3 | . . . . . 2 . . . . . . . . . . 1 2 2 . 1 . 1 2 3 3 Low Security (%) 65 | 100 100 . 100 . 80 . . . . . 100 . . . . 76 87 . 100 93 100 78 43 3 . Level 1 13 | . . . . . 14 . . . . . . . . . . 23 4 17 . 6 . 21 41 59 . Level 2 7 | . . . . . 4 . . . . . . . . . . . 8 82 . . . . 14 10 19 Level 3 13 | . . . . . . . . . . . . . . . . . . . . . . . . 25 80 Level 4 . | . . . . . . . . . . . . . . . . . . . . . . . . . . Level 5 . | . . . . . . . . . . . . . . . . . . . . . . . . . . High Security . | . . . . . . . . . . . . . . . . . . . . . . . . . . Max Security . | . . . . . . . . . . . . . . . . . . . . . . . . . . Peak Influence 964 | 15 94 . 60 . 407 . . . . . 160 . . . . 390 593 471 164 228 106 319 443 827 964 Initial 527 | . . . . . . . . . . . . . . . . 150 165 327 164 46 82 24 171 241 527 Average 232 | 2 35 . 15 . 127 . . . . . 54 . . . . 149 119 414 152 129 20 111 238 430 811 Influence Increases 10278 | 35 429 165 203 . 1158 80 . . . 150 483 66 140 258 214 700 1154 254 . 622 212 639 634 1238 1444 Destroy 0b10 Robot/C 5680 | . 180 120 . . 620 80 . . . 100 220 40 120 140 160 280 720 160 . 400 140 240 360 640 960 Destroy 0b10 Robot/NC 550 | 35 65 . 20 . 105 . . . . . 10 . . 5 10 40 45 10 . 25 10 25 15 50 80 Destroy Leader 1078 | . 38 . . . 166 . . . . 20 72 20 20 . 20 60 94 . . 66 50 54 100 116 182 Allied During Kill 252 | . . . . . . . . . . . 59 6 . 23 24 3 121 16 . . . . . . . Trap Triggered on 0b10 10 | . . . . . 10 . . . . . . . . . . . . . . . . . . . . Successful Hack 122 | . 21 . 33 . 27 . . . . . 18 . . . . . 10 . . . . 13 . . . Select Force Hacks 180 | . 30 . 150 . . . . . . . . . . . . . . . . . . . . . . Disable Machine 645 | . 30 . . . 75 . . . . . 60 . . . . 60 45 30 . 60 . 105 30 90 60 Destroy Structure 1101 | . 5 . . . 95 . . . . . 44 . . . . 62 74 38 . 56 12 172 99 282 162 Advance Influence 150 | . . . . . . . . . . . . . . . . 150 . . . . . . . . . Partial Spotted 30 | . . . . . . . . . . . . . . . . . . . . . . 15 . 15 . Lose Combat Pursuer 480 | . 60 45 . . 60 . . . . 30 . . . 90 . 45 45 . . 15 . 15 30 45 . Influence Decreases 9555 | 35 412 182 195 8 757 411 70 . . 150 383 166 116 163 333 362 907 428 277 598 326 378 536 817 1545 Entered New Map 1815 | . . 9 . 8 . 149 14 . . . . 37 . 24 119 . 173 258 247 88 76 20 134 162 297 Time Decay 6236 | 35 402 173 195 . 512 262 56 . . 150 314 99 96 104 194 342 479 170 30 440 230 358 342 595 658 Lost Part 968 | . 10 . . . 245 . . . . . 9 10 20 . . . 24 . . 70 20 . 60 60 440 Lost Ally 244 | . . . . . . . . . . . 60 20 . 35 20 20 89 . . . . . . . . Purge Threat 292 | . . . . . . . . . . . . . . . . . 142 . . . . . . . 150 Squads Dispatched 59 | . 2 . . . 15 . . . . . 3 . . . . 4 2 . . 5 2 3 3 9 11 Investigation 2 | . 1 . . . . . . . . . 1 . . . . . . . . . . . . . . Extermination 26 | . . . . . 4 . . . . . 2 . . . . 2 . . . 2 2 3 2 5 4 Reinforcement 21 | . 1 . . . 7 . . . . . . . . . . 2 2 . . 3 . . 1 3 2 Assault 6 | . . . . . . . . . . . . . . . . . . . . . . . . 1 5 Garrison 4 | . . . . . 4 . . . . . . . . . . . . . . . . . . . . Intercept . | . . . . . . . . . . . . . . . . . . . . . . . . . . Searches Triggered . | . . . . . . . . . . . . . . . . . . . . . . . . . . Construction Impeded 4 | . . . . . 2 . . . . . . . . . . 1 1 . . . . . . . . Haulers Reinforced 1 | . . . . . . . . . . . . . . . . . . . . 1 . . . . . Active Scanning Responses . | . . . . . . . . . . . . . . . . . . . . . . . . . . Cargo Convoy Interrupts 1 | . . . . . 1 . . . . . . . . . . . . . . . . . . . . Stealth | -11 -10 -10 -9 -9 -6 -6 -6 -6 -6 -5 -5 -5 -5 -5 -4 -4 -4 -4 -4 -4 -3 -3 -2 -1 -1 --------- Run | Yrd Mat Sub Rec Scr Fac Low Low Zio Dee Pro Fac Upp Upp War Pro Fac Ext Cet Arc Hub Res Tes Res Acc Com Distress Signals 13 | . 2 . . . 4 . . . . . 1 . . . . 1 . 2 . 2 . . 1 . . Communications Jammed 96 | . . . . . . . . . . . . . . 1 1 6 4 . . 7 1 3 27 17 29 Distress Signals 83 | . . . . . . . . . . . . . . 1 . 5 4 . . 6 1 3 17 17 29 Times Spotted 430 | . 24 8 . . 51 4 . . 7 11 7 5 6 28 8 15 44 10 . 36 7 22 22 44 71 Peak Tracking Total 16 | . 4 2 . . 5 3 . . 3 5 2 4 4 16 3 5 6 5 . 10 2 5 7 8 9 Tactical Retreats 22 | . 2 1 . . 4 . . . . 2 . . . 2 . 1 3 . . 1 . 1 2 3 . Traps | -11 -10 -10 -9 -9 -6 -6 -6 -6 -6 -5 -5 -5 -5 -5 -4 -4 -4 -4 -4 -4 -3 -3 -2 -1 -1 ------- Run | Yrd Mat Sub Rec Scr Fac Low Low Zio Dee Pro Fac Upp Upp War Pro Fac Ext Cet Arc Hub Res Tes Res Acc Com Traps Triggered 13 | . 2 . . . 2 . . . . . 1 . . . . 1 1 . . . . . 3 1 2 Indirectly 6 | . . . . . . . . . . . . . . . . 1 . . . . . . 3 . 2 Trap Hack Attempts . | . . . . . . . . . . . . . . . . . . . . . . . . . . Triggered . | . . . . . . . . . . . . . . . . . . . . . . . . . . Disarmed . | . . . . . . . . . . . . . . . . . . . . . . . . . . Reprogrammed . | . . . . . . . . . . . . . . . . . . . . . . . . . . Reused 1 | . . . . . 1 . . . . . . . . . . . . . . . . . . . . Traps Extracted . | . . . . . . . . . . . . . . . . . . . . . . . . . . Installed 1 | . . . . . 1 . . . . . . . . . . . . . . . . . . . . Triggered 1 | . . . . . 1 . . . . . . . . . . . . . . . . . . . . Most Traps Carried 1 | . . . . 1 1 . . . . . . . . . . . . . . . . . . . . Machines | -11 -10 -10 -9 -9 -6 -6 -6 -6 -6 -5 -5 -5 -5 -5 -4 -4 -4 -4 -4 -4 -3 -3 -2 -1 -1 ---------- Run | Yrd Mat Sub Rec Scr Fac Low Low Zio Dee Pro Fac Upp Upp War Pro Fac Ext Cet Arc Hub Res Tes Res Acc Com Machines Disabled 50 | . 2 1 . . 5 . . 3 2 . 4 . . 1 . 4 3 2 . 4 . 7 2 6 4 Max in Single Turn 3 | . 1 1 . . 2 . . 1 1 . 2 . . 1 . 2 1 1 . 1 . 3 2 2 1 Garrison Access 1 | . . . . . . . . . . . . . . . . . . . . . . 1 . . . Energy Cycler 1 | . . . . . . . . . . . . . . . . . 1 . . . . . . . . Machines Repaired . | . . . . . . . . . . . . . . . . . . . . . . . . . . Machines Dismantled . | . . . . . . . . . . . . . . . . . . . . . . . . . . Machines Sabotaged . | . . . . . . . . . . . . . . . . . . . . . . . . . . Overloaded Fab Kills . | . . . . . . . . . . . . . . . . . . . . . . . . . . Hacking | -11 -10 -10 -9 -9 -6 -6 -6 -6 -6 -5 -5 -5 -5 -5 -4 -4 -4 -4 -4 -4 -3 -3 -2 -1 -1 --------- Run | Yrd Mat Sub Rec Scr Fac Low Low Zio Dee Pro Fac Upp Upp War Pro Fac Ext Cet Arc Hub Res Tes Res Acc Com Machines Accessed 48 | . 8 . 9 4 5 . . . . . 5 2 1 2 . 1 3 . 1 1 . 4 1 . 1 Terminals 17 | . 6 . 4 . 2 . . . . . 2 . . . . . 3 . . . . . . . . Fabricators 1 | . . . . . . . . . . . . . . . . 1 . . . . . . . . . Repair Stations 3 | . 1 . . . . . . . . . 1 . . . . . . . . . . . . . 1 Recycling Units 7 | . 1 . 5 . . . . . . . 1 . . . . . . . . . . . . . . Scanalyzers 6 | . . . . . 1 . . . . . 1 . . . . . . . . . . 3 1 . . Garrison Access 4 | . . . . . 2 . . . . . . . . . . . . . . 1 . 1 . . . Total Hacks 142 | . 30 . 25 11 7 . . . . . 16 5 1 2 . 1 8 . 25 1 . 7 2 . 1 Successful 89 | . 13 . 15 11 1 . . . . . 7 5 1 2 . 1 3 . 25 . . 5 . . . Failed 52 | . 17 . 10 . 6 . . . . . 8 . . . . . 5 . . 1 . 2 2 . 1 Catastrophic 8 | . 2 . 2 . 1 . . . . . . . . . . . . . . 1 . . 1 . 1 Database Lockouts 1 | . . . . . . . . . . . 1 . . . . . . . . . . . . . . Manual 57 | . 24 . 15 . . . . . . . 10 . . . . . 6 1 . . . . . . 1 Terminals 54 | . 25 . 10 . 3 . . . . . 8 . . . . . 8 . . . . . . . . Fabricators 1 | . . . . . . . . . . . . . . . . 1 . . . . . . . . . Repair Stations 4 | . 1 . . . . . . . . . 2 . . . . . . . . . . . . . 1 Recycling Units 22 | . 4 . 15 . . . . . . . 3 . . . . . . . . . . . . . . Scanalyzers 12 | . . . . . 1 . . . . . 3 . . . . . . . . . . 6 2 . . Garrison Access 5 | . . . . . 3 . . . . . . . . . . . . . . 1 . 1 . . . Terminal Hacks 51 | . 2 . 3 11 1 . . . . . . 5 1 2 . . 1 . 25 . . . . . . Record 40 | . . . . 10 . . . . . . . 4 . 1 . . . . 25 . . . . . . Robot Analysis 3 | . 1 . 2 . . . . . . . . . . . . . . . . . . . . . . Open Door 3 | . . . . . . . . . . . . 1 1 1 . . . . . . . . . . . Branch Access Points 2 | . . . 1 . 1 . . . . . . . . . . . . . . . . . . . . Terminal Index 1 | . 1 . . . . . . . . . . . . . . . . . . . . . . . . Unreport Threat 1 | . . . . . . . . . . . . . . . . . 1 . . . . . . . . Proto ID Catalog 1 | . . . . 1 . . . . . . . . . . . . . . . . . . . . . Fabricator Hacks 1 | . . . . . . . . . . . . . . . . 1 . . . . . . . . . Network Status 1 | . . . . . . . . . . . . . . . . 1 . . . . . . . . . Repair Station Hacks 3 | . 1 . . . . . . . . . 2 . . . . . . . . . . . . . . Scan Component 1 | . . . . . . . . . . . 1 . . . . . . . . . . . . . . Repair 1 | . . . . . . . . . . . 1 . . . . . . . . . . . . . . Refit 1 | . 1 . . . . . . . . . . . . . . . . . . . . . . . . Recycling Unit Hacks 5 | . . . 4 . . . . . . . 1 . . . . . . . . . . . . . . Retrieve Matter 1 | . . . 1 . . . . . . . . . . . . . . . . . . . . . . Retrieve Components 4 | . . . 3 . . . . . . . 1 . . . . . . . . . . . . . . Scanalyzer 6 | . . . . . . . . . . . 2 . . . . . . . . . . 4 . . . Insert Component 4 | . . . . . . . . . . . 1 . . . . . . . . . . 3 . . . Analyze 1 | . . . . . . . . . . . . . . . . . . . . . . 1 . . . Retrieve Study 1 | . . . . . . . . . . . 1 . . . . . . . . . . . . . . Garrison Access Hacks 1 | . . . . . . . . . . . . . . . . . . . . . . 1 . . . Seal Access 1 | . . . . . . . . . . . . . . . . . . . . . . 1 . . . Unauthorized Hacks 20 | . 9 . 7 . . . . . . . 2 . . . . . 2 . . . . . . . . Terminals 13 | . 8 . 2 . . . . . . . 1 . . . . . 2 . . . . . . . . Track 1 | . . . . . . . . . . . . . . . . . 1 . . . . . . . . Assimilate 1 | . 1 . . . . . . . . . . . . . . . . . . . . . . . . Botnet 5 | . 2 . 2 . . . . . . . 1 . . . . . . . . . . . . . . Disrupt 1 | . . . . . . . . . . . . . . . . . 1 . . . . . . . . Operators 1 | . 1 . . . . . . . . . . . . . . . . . . . . . . . . Skim 4 | . 4 . . . . . . . . . . . . . . . . . . . . . . . . Fabricators . | . . . . . . . . . . . . . . . . . . . . . . . . . . Repair Stations . | . . . . . . . . . . . . . . . . . . . . . . . . . . Recycling Units 7 | . 1 . 5 . . . . . . . 1 . . . . . . . . . . . . . . Tunnel 6 | . 1 . 5 . . . . . . . . . . . . . . . . . . . . . . Scrapoids 1 | . . . . . . . . . . . 1 . . . . . . . . . . . . . . Scanalyzers . | . . . . . . . . . . . . . . . . . . . . . . . . . . Garrison Access . | . . . . . . . . . . . . . . . . . . . . . . . . . . Data Cores Recovered . | . . . . . . . . . . . . . . . . . . . . . . . . . . Used . | . . . . . . . . . . . . . . . . . . . . . . . . . . Hacking Detections 31 | . 7 . 6 . 5 . . . . . 4 . . . . . 3 . . 1 . 3 1 . 1 Full Trace Events . | . . . . . . . . . . . . . . . . . . . . . . . . . . Feedback Events . | . . . . . . . . . . . . . . . . . . . . . . . . . . Feedback Blocked . | . . . . . . . . . . . . . . . . . . . . . . . . . . Robot Schematics Acquired . | . . . . . . . . . . . . . . . . . . . . . . . . . . Robots Built . | . . . . . . . . . . . . . . . . . . . . . . . . . . Authchips . | . . . . . . . . . . . . . . . . . . . . . . . . . . Time . | . . . . . . . . . . . . . . . . . . . . . . . . . . Total Robot Build Rating . | . . . . . . . . . . . . . . . . . . . . . . . . . . Part Schematics Acquired . | . . . . . . . . . . . . . . . . . . . . . . . . . . Parts Built . | . . . . . . . . . . . . . . . . . . . . . . . . . . Authchips . | . . . . . . . . . . . . . . . . . . . . . . . . . . Time . | . . . . . . . . . . . . . . . . . . . . . . . . . . Total Part Build Rating . | . . . . . . . . . . . . . . . . . . . . . . . . . . Part Studies Acquired 1 | . . . . . . . . . . . 1 . . . . . . . . . . . . . . Parts Repaired 1 | . . . . . . . . . . . 1 . . . . . . . . . . . . . . Time 44 | . . . . . . . . . . . 44 . . . . . . . . . . . . . . Parts Recycled . | . . . . . . . . . . . . . . . . . . . . . . . . . . Recycled Matter . | . . . . . . . . . . . . . . . . . . . . . . . . . . Retrieved Matter . | . . . . . . . . . . . . . . . . . . . . . . . . . . Retrieved Components 8 | . . . 5 . . . . . . . 3 . . . . . . . . . . . . . . Parts Scanalyzed 1 | . . . . . . . . . . . . . . . . . . . . . . 1 . . . Part Schematics Acquired . | . . . . . . . . . . . . . . . . . . . . . . . . . . Parts Damaged . | . . . . . . . . . . . . . . . . . . . . . . . . . . Bothacking | -11 -10 -10 -9 -9 -6 -6 -6 -6 -6 -5 -5 -5 -5 -5 -4 -4 -4 -4 -4 -4 -3 -3 -2 -1 -1 ------------ Run | Yrd Mat Sub Rec Scr Fac Low Low Zio Dee Pro Fac Upp Upp War Pro Fac Ext Cet Arc Hub Res Tes Res Acc Com Used RIF Installer . | . . . . . . . . . . . . . . . . . . . . . . . . . . Robots Hacked . | . . . . . . . . . . . . . . . . . . . . . . . . . . Non-combat . | . . . . . . . . . . . . . . . . . . . . . . . . . . Combat . | . . . . . . . . . . . . . . . . . . . . . . . . . . Robot Hacks Applied . | . . . . . . . . . . . . . . . . . . . . . . . . . . Relay Couplers Released 3 | . . . . . 3 . . . . . . . . . . . . . . . . . . . . Programmers 3 | . . . . . 3 . . . . . . . . . . . . . . . . . . . . Fabnet Peak Effective % . | . . . . . . . . . . . . . . . . . . . . . . . . . . Robots Rewired 11 | . . . . . . . . . . . . . . 5 . . 6 . . . . . . . . Allies Hacked . | . . . . . . . . . . . . . . . . . . . . . . . . . . Hacks Repelled . | . . . . . . . . . . . . . . . . . . . . . . . . . . Allies | -11 -10 -10 -9 -9 -6 -6 -6 -6 -6 -5 -5 -5 -5 -5 -4 -4 -4 -4 -4 -4 -3 -3 -2 -1 -1 -------- Run | Yrd Mat Sub Rec Scr Fac Low Low Zio Dee Pro Fac Upp Upp War Pro Fac Ext Cet Arc Hub Res Tes Res Acc Com Total Allies 24 | . . . . . . . . 2 . . 5 . . 5 . . 12 . . . . . . . . Largest Group 6 | . . . . . . . . 2 2 . 5 1 . 5 2 1 6 1 1 . . . . . . Highest-Rated Group 383 | . . . . . . . . 45 45 . 238 47 . 251 77 41 383 153 153 . . . . . . Highest-Rated Ally 159 | . . . . . . . . 31 31 . 50 47 . 64 41 41 159 153 153 . . . . . . Total Orders 62 | . . . . . . . . . . . . . . 26 2 4 8 . . 5 1 7 . 7 2 STAY 12 | . . . . . . . . . . . . . . 9 1 2 . . . . . . . . . ROAM 2 | . . . . . . . . . . . . . . 1 . 1 . . . . . . . . . FOLLOW 10 | . . . . . . . . . . . . . . 8 1 1 . . . . . . . . . EXPLORE 7 | . . . . . . . . . . . . . . 4 . . . . . . . . . 3 . RETURN 31 | . . . . . . . . . . . . . . 4 . . 8 . . 5 1 7 . 4 2 Ally Attacks 196 | . . . . . . . . . 30 . 47 2 . 24 14 4 57 18 . . . . . . . Total Damage 5630 | . . . . . . . . . 414 . 1171 53 . 1151 584 131 1395 731 . . . . . . . Kills 45 | . . . . . . . . . 7 . 8 1 . 6 7 1 13 2 . . . . . . . Allies Corrupted . | . . . . . . . . . . . . . . . . . . . . . . . . . . Allies Melted 1 | . . . . . . . . . . . . . . 1 . . . . . . . . . . . Intel | -11 -10 -10 -9 -9 -6 -6 -6 -6 -6 -5 -5 -5 -5 -5 -4 -4 -4 -4 -4 -4 -3 -3 -2 -1 -1 ------- Run | Yrd Mat Sub Rec Scr Fac Low Low Zio Dee Pro Fac Upp Upp War Pro Fac Ext Cet Arc Hub Res Tes Res Acc Com Active Infowar (turns) 26322 | 85 2014 1078 679 332 1689 516 307 1662 1146 1592 986 583 1107 1584 670 755 1202 356 63 1078 1228 1470 769 1882 1489 Optics 459 | . . . . . 459 . . . . . . . . . . . . . . . . . . . . Sensors 14050 | . . . . . . 484 307 1662 959 1516 627 500 970 649 630 551 788 . . 520 1018 1091 404 1371 3 Terrain 140 | . . . . . . . . . . . . . . . . . . . . . . . . 140 . Seismic 9038 | 85 2014 1078 679 332 1600 43 . 485 353 1592 720 57 . . . . . . . . . . . . . Cloaking 3547 | . . . . . . . . . . . . . . 1 . . . . . . 749 350 417 1882 148 Jamming 11440 | . . . . . . . . . . . 2 79 137 1584 666 654 991 356 63 769 603 1401 769 1882 1484 ECM 1 | . . . . . . . . 1 . . . . . . . . . . . . . . . . . Robot Analysis Total 3 | . 1 . 2 . . . . . . . . . . . . . . . . . . . . . . Derelict Logs Recovered 10 | . . 1 . 2 . 1 . 1 . 2 . . 1 . 2 . . . . . . . . . . Drone Launches 29 | . . . . . . . . . . . . . . 2 . . 8 . . 5 1 7 . 4 2 Drone Recoveries 29 | . . . . . . . . . . . . . . 2 . . 8 . . 5 1 7 . 4 2 Exploration | -11 -10 -10 -9 -9 -6 -6 -6 -6 -6 -5 -5 -5 -5 -5 -4 -4 -4 -4 -4 -4 -3 -3 -2 -1 -1 ------------- Run | Yrd Mat Sub Rec Scr Fac Low Low Zio Dee Pro Fac Upp Upp War Pro Fac Ext Cet Arc Hub Res Tes Res Acc Com Turns Passed 34894 | 211 2371 1196 679 2209 2321 577 307 1662 5129 1592 1012 602 1107 1631 696 768 1485 358 63 1092 1228 1470 769 1882 2477 Spaces Moved 17188 | 76 889 513 422 1398 920 358 236 1324 2677 812 458 296 526 934 560 433 750 177 40 412 382 635 275 781 904 Core 165 | 4 . . . . . . . . . . . . . . . . . . . . . . . . 161 Treads 4238 | 72 373 27 . . 606 . . . . . . . . . . . . 146 40 412 382 635 275 781 489 Legs 9704 | . . . . . 71 358 236 1324 2661 812 458 296 526 934 560 433 750 31 . . . . . . 254 Wheels 3065 | . 516 486 422 1398 243 . . . . . . . . . . . . . . . . . . . . Hover 16 | . . . . . . . . . 16 . . . . . . . . . . . . . . . . Flight . | . . . . . . . . . . . . . . . . . . . . . . . . . . Fastest Speed 48 | 50 160 200 140 140 140 120 120 120 48 120 190 190 120 113 113 113 113 113 160 160 156 157 167 151 50 Average Speed 155 | 154 169 206 153 153 162 122 120 120 177 189 193 190 188 130 113 119 115 152 160 160 158 160 168 160 130 Slowest Speed 560 | 160 320 320 200 215 560 190 120 120 260 190 260 190 190 190 113 120 120 240 160 160 160 167 172 172 400 Overloaded Moves . | . . . . . . . . . . . . . . . . . . . . . . . . . . Propulsion Burnouts . | . . . . . . . . . . . . . . . . . . . . . . . . . . Robots Hopped . | . . . . . . . . . . . . . . . . . . . . . . . . . . Potential Cave-ins 10 | . . . . . . . . . . . . . . . . . . . . 10 . . . . . Cave-ins Triggered . | . . . . . . . . . . . . . . . . . . . . . . . . . . Exploration Rate (%) 52 | 6 88 26 85 83 33 57 43 82 87 81 15 54 67 92 60 16 78 67 59 41 8 72 9 23 25 Regions Visited 25 Branch Regions 18 Pre-discovered Areas 9 | . 1 . 5 1 . 1 . 1 . . . . . . . . . . . . . . . . . Known Exits Taken 12 | . . . . . 1 . . . . . . . 1 . 1 1 1 1 1 1 1 1 1 1 . Unknown Exits Taken 13 | 1 1 1 1 1 . 1 1 1 1 1 1 1 . 1 . . . . . . . . . . . Scrap Searched 14 | . . . . 4 . 4 . 2 . 1 . 1 2 . . . . . . . . . . . . Spaces Dug 115 | . 4 6 . . 16 2 3 . 1 . 4 1 2 . 1 14 2 . . 15 4 13 9 14 4 Terrain Destroyed 679 | . 5 11 . . 124 8 4 . 13 4 12 6 17 4 13 35 56 5 . 46 6 106 45 105 54 Melee 23 | . . . . . 11 1 2 . 1 . . . . . . . . . . . 4 4 . . . Projectile 357 | . 5 . . . . 3 2 . 1 . 12 6 13 4 8 35 56 5 . 46 2 26 22 68 43 AOE 297 | . . 11 . . 113 4 . . 11 4 . . 4 . 5 . . . . . . 76 21 37 11 Terrain Rammed . | . . . . . . . . . . . . . . . . . . . . . . . . . . Walls Destroyed . | . . . . . . . . . . . . . . . . . . . . . . . . . . Machines Disabled . | . . . . . . . . . . . . . . . . . . . . . . . . . . Actions | -11 -10 -10 -9 -9 -6 -6 -6 -6 -6 -5 -5 -5 -5 -5 -4 -4 -4 -4 -4 -4 -3 -3 -2 -1 -1 --------- Run | Yrd Mat Sub Rec Scr Fac Low Low Zio Dee Pro Fac Upp Upp War Pro Fac Ext Cet Arc Hub Res Tes Res Acc Com Total 22850 | 118 1607 590 438 1465 1423 455 251 1396 3026 866 557 323 597 1316 589 577 1156 241 39 679 922 967 440 1181 1631 Wait 2636 | . 585 22 . 2 164 52 1 22 69 32 17 1 20 288 4 43 145 12 . 128 442 169 41 191 186 Move 17164 | 75 888 512 421 1397 920 357 235 1323 2676 811 457 295 525 933 559 432 749 176 39 411 381 634 274 780 904 Hop . | . . . . . . . . . . . . . . . . . . . . . . . . . . Pick Up 334 | 9 21 4 1 19 38 3 2 12 71 6 10 1 2 9 . 3 8 7 . 13 15 17 10 8 45 Fast Attach 203 | 6 6 . . 8 13 5 1 8 38 1 8 3 . 7 . 6 17 4 . 4 9 8 8 18 25 Attach 130 | 1 1 . 1 2 31 3 . 4 9 1 6 . 1 4 . . 2 4 . 6 8 2 4 6 34 Detach 33 | . 1 . 2 . 7 2 . . 3 . . . . 1 . . . 4 . 1 4 . . 3 5 Swap 386 | . 12 20 2 9 37 7 3 1 7 4 12 6 7 7 10 21 53 4 . 29 8 30 13 34 50 Drop 415 | . 14 4 3 28 29 2 2 20 99 8 20 5 2 15 1 12 27 16 . 11 12 28 14 16 27 Fire 1337 | 27 79 28 8 . 156 23 5 6 53 2 27 12 40 17 15 60 99 13 . 74 13 60 76 121 323 Melee 101 | . . . . . 24 1 2 . 1 . . . . . . . . 1 . . 30 19 . 4 19 Ram 4 | . . . . . . . . . . . . . . . . . . . . . . . . . 4 Kick 12 | . . . . . 3 . . . . . . . . . . . . . . . . . . . 9 Crush 2 | . . . . . . . . . . . . . . . . . . . . 2 . . . . . Escape Stasis . | . . . . . . . . . . . . . . . . . . . . . . . . . . Rewire 91 | . . . . . . . . . . . . . . 35 . . 56 . . . . . . . . Trap 1 | . . . . . 1 . . . . . . . . . . . . . . . . . . . . Miscellaneous 1 | . . . . . . . . . . 1 . . . . . . . . . . . . . . . Route ------- -11/Scrapyard -10/Materials (discovered 5 exits: [*Mat x3] / [*Min] / [*Sub]) -10/Subcaves (discovered 2 exits: [*Mat] / *Rec) -9/Recycling (discovered 2 exits: [*Fac] / *Scr) -9/Scraptown (discovered 2 exits: *Fac x2) -6/Factory (discovered 2 exits: *Low x2) -6/Lower Caves -6/Lower Caves -6/Zion (discovered 2 exits: [*Dee] / [*Pro]) -6/Deep Caves -5/Proximity Caves -5/Factory (discovered 3 exits: *Fac x2 / *Upp) -5/Upper Caves -5/Upper Caves (discovered 2 exits: *Fac / *War) -5/Warlord -4/Proximity Caves -4/Factory -4/Extension (discovered 2 exits: *Res / *Cet) -4/Cetus (discovered 2 exits: *Res / *Arc) -4/Archives -4/Hub_04(d) (discovered 4 exits: *Res x4) -3/Research (discovered 4 exits: Res x3 / *Tes) -3/Testing -2/Research (discovered 2 exits: *Acc / Qua) -1/Access -1/Command History --------- Turn | Location | Event 18 | -11/Scrapyard | Discovered new exit (range 15) 212 | -11/Scrapyard | Entered Materials 308 | -10/Materials | Build established: Mutant 358 | -10/Materials | Discovered new exit (range 3) 870 | -10/Materials | Discovered new exit (range 8) 1092 | -10/Materials | Discovered new exit (range 5) 1482 | -10/Materials | Discovered new exit (range 7) 1974 | -10/Materials | Discovered new exit (range 12) 2583 | -10/Materials | Entered Subcaves 2685 | -10/Subcaves | Learned location of 1 exit from Materials 2739 | -10/Subcaves | Discovered new exit (range 13) 2762 | -10/Subcaves | Ambushed by Subdweller buried in earth 2780 | -10/Subcaves | Discovered new exit (range 12) 3018 | -10/Subcaves | A swath of the cavern ceiling suddenly collapsed 3225 | -10/Subcaves | Core integrity fell below 50% 3779 | -10/Subcaves | Entered Recycling 4114 | -9/Recycling | Discovered new exit (range 16) 4417 | -9/Recycling | Scanned before Scraplab entrance 4444 | -9/Recycling | Entered Scraplab 4455 | -9/Recycling | Discovered new exit (range 3) 4458 | -9/Recycling | Entered Scraptown 4461 | -9/Scraptown | System corruption cleaned by C-Scrubber 4759 | -9/Scraptown | Discovered new exit (range 11) 4841 | -9/Scraptown | Scanned Subdweller tech in exchange for log data 4847 | -9/Scraptown | Learned Factory garrison access intel 4882 | -9/Scraptown | Visited Cyclists 4904 | -9/Scraptown | Visited Symbiants 4945 | -9/Scraptown | Heard Great Nut preacher, LISTEN AND RECITE! 4968 | -9/Scraptown | Visited Science Testing Area 4991 | -9/Scraptown | Visited IN-MT5's Study 5012 | -9/Scraptown | Visited Scrapoid Research Area 5029 | -9/Scraptown | Visited Comm Corps 5111 | -9/Scraptown | Visited UFD Registry 5111 | -9/Scraptown | Registered with UFD as "Matterguard" 5184 | -9/Scraptown | Entered Cyclist Reading Room 5324 | -9/Scraptown | Visited Derelict Rescue Squad 5340 | -9/Scraptown | Found DRS Beacon 5417 | -9/Scraptown | Visited Chapter 10 5475 | -9/Scraptown | Visited Research Penetration Think Tank 5509 | -9/Scraptown | Visited Abandonware Association 5533 | -9/Scraptown | Learned abandonware demo "HACKBUD.EXE" 5533 | -9/Scraptown | Learned abandonware demo "POISON.EXE" 5575 | -9/Scraptown | Visited Scrap Suit Storage 5621 | -9/Scraptown | Visited DA-N13 Charitable Foundation 5629 | -9/Scraptown | Found DCF Scrap (26 items) 5677 | -9/Scraptown | Visited Curators Association 5749 | -9/Scraptown | Visited Science Guys 5813 | -9/Scraptown | Visited Junk Cannon Lab 5824 | -9/Scraptown | Found Prototype Special Weapon 6588 | -9/Scraptown | Met Optimus 6588 | -9/Scraptown | Accepted into 0bPrime 6665 | -9/Scraptown | Discovered new exit (range 3) 6667 | -9/Scraptown | Entered Factory 6667 | -6/Factory | Evolved 8 slots: Propulsion x4, Utility x4 6668 | -6/Factory | Loaded intel: 4 garrison access locations 6976 | -6/Factory | Build established: Derelict-Mutant 7145 | -6/Factory | System corruption reached 10% 7175 | -6/Factory | Lost 5 parts (1p1n3u) 7479 | -6/Factory | Build established: Scavenger-Mutant 7838 | -6/Factory | Garrison activated, responded to threat 7893 | -6/Factory | Build established: Mutant 8355 | -6/Factory | Identified exit to Lower Caves 8637 | -6/Factory | Lost 3 parts (1p2u) 8689 | -6/Factory | Lost 3 parts (1n2w) 8755 | -6/Factory | Lost 7 parts (1p4n1u1w) 8845 | -6/Factory | Cargo convoy interrupted 8880 | -6/Factory | Lost 3 parts (3n) 8968 | -6/Factory | Garrison activated, responded to threat 8988 | -6/Factory | Entered Lower Caves 9052 | -6/Lower Caves | Build established: Scavenger-Mutant 9277 | -6/Lower Caves | Learned location of Extension (-4) 9441 | -6/Lower Caves | Attracted the attention of an 0b10 checkpoint 9533 | -6/Lower Caves | Discovered new exit (range 8) 9565 | -6/Lower Caves | Entered another Lower Caves area 9662 | -6/Lower Caves | Spotted B-75 Beast 9858 | -6/Lower Caves | Discovered new exit (range 13) 9872 | -6/Lower Caves | Entered Zion 9920 | -6/Zion | System corruption cleaned by Quarantine Array 9992 | -6/Zion | Given the Hacking Drone Bay 9993 | -6/Zion | Found Prototype Device 10044 | -6/Zion | Discovered new exit (range 15) 10134 | -6/Zion | Given A8's code to call for help 10350 | -6/Zion | Gained Derelict followers 10486 | -6/Zion | Learned location of 1 exit from Factory 10821 | -6/Zion | Identified Junk Cannon 11518 | -6/Zion | Discovered new exit (range 3) 11518 | -6/Zion | Saw the warning signs outside the Deep Caves entrance 11534 | -6/Zion | Entered Deep Caves 11534 | -6/Deep Caves | Accompanied by 2 allies 11880 | -6/Deep Caves | Z-Facility disabled 11893 | -6/Deep Caves | Attacked by Z-Imprinter 11897 | -6/Deep Caves | Attached CPS modules to Z-Imprinter. 11922 | -6/Deep Caves | Allies destroyed Z-Imprinter 11957 | -6/Deep Caves | Lost 8 parts (4n2u2w) 12003 | -6/Deep Caves | Found Prototype Protection 12003 | -6/Deep Caves | Identified Zio. Weapon Casing 12167 | -6/Deep Caves | Found Prototype Device 12167 | -6/Deep Caves | Identified Zio. Metafield Generator 12878 | -6/Deep Caves | Found Zio. Weapon Casing 13521 | -6/Deep Caves | Discovered new exit (range 6) 14837 | -6/Deep Caves | Found Prototype Protection 14837 | -6/Deep Caves | Identified Zio. Heavy Carapace 15973 | -6/Deep Caves | Spotted AG-44354 16005 | -6/Deep Caves | Destroyed AG-44354 16224 | -6/Deep Caves | Spotted AG-37377 16259 | -6/Deep Caves | Destroyed AG-37377 16663 | -6/Deep Caves | Entered Proximity Caves 16693 | -5/Proximity Caves | Activated DRS Beacon 17190 | -5/Proximity Caves | Attracted the attention of an 0b10 checkpoint 17314 | -5/Proximity Caves | Learned Factory garrison access intel 18072 | -5/Proximity Caves | Discovered new exit (range 15) 18255 | -5/Proximity Caves | Entered Factory 18255 | -5/Factory | Evolved 2 slots: Power x1, Weapon x1 18256 | -5/Factory | Identified exit to Factory 18257 | -5/Factory | Loaded intel: 4 garrison access locations 18516 | -5/Factory | Identified Hacking Drone Bay 18516 | -5/Factory | Central database locked down 18626 | -5/Factory | Repaired Imp. Medium Armor Plating 18655 | -5/Factory | Build established: Scavenger-Tank 18968 | -5/Factory | Discovered exit to Factory (range 8) 19007 | -5/Factory | Scrapoid reinforcements arrived 19121 | -5/Factory | Discovered new exit (range 11) 19184 | -5/Factory | Lost 4 allies 19267 | -5/Factory | Entered Upper Caves 19267 | -5/Upper Caves | Accompanied by 1 ally 19485 | -5/Upper Caves | Learned Research emergency access door positions 19751 | -5/Upper Caves | Discovered new exit (range 10) 19869 | -5/Upper Caves | Entered another Upper Caves area 19870 | -5/Upper Caves | Identified exit to Warlord 19911 | -5/Upper Caves | Attracted the attention of an 0b10 checkpoint 20041 | -5/Upper Caves | Discovered exit to Factory (range 15) 20523 | -5/Upper Caves | Learned Factory machine intel 20976 | -5/Upper Caves | Entered Warlord 21041 | -5/Warlord | System corruption cleaned by Quarantine Array 21273 | -5/Warlord | Build established: Scavenger-Mutant 21390 | -5/Warlord | Found Prototype Device 21390 | -5/Warlord | Identified Exp. Cloaking Device 21422 | -5/Warlord | Found Prototype Reactor 21708 | -5/Warlord | Warlord's base attacked by MAIN.C 21725 | -5/Warlord | Found Prototype Energy Gun 21725 | -5/Warlord | Identified Vortex Shotgun 21736 | -5/Warlord | Found Prototype Piercing Weapon 22058 | -5/Warlord | Warlord forces counterattacked 22124 | -5/Warlord | Spotted Executioner 22135 | -5/Warlord | Spotted Striker 22143 | -5/Warlord | P-70 Sage assimilated allied MP-807(g) 22175 | -5/Warlord | Lost 9 allies 22225 | -5/Warlord | Rebuked by Warlord 22383 | -5/Warlord | Warlord base infiltrated, sounded retreat 22384 | -5/Warlord | Enhanced Grunt warped into view 22384 | -5/Warlord | Enhanced Grunt warped into view 22384 | -5/Warlord | Enhanced Grunt warped into view 22384 | -5/Warlord | Enhanced Demolisher warped into view 22384 | -5/Warlord | Enhanced Demolisher warped into view 22384 | -5/Warlord | Enhanced Demolisher warped into view 22387 | -5/Warlord | Attached CPS modules to Enhanced Demolisher. 22389 | -5/Warlord | Attached CPS modules to Enhanced Demolisher. 22430 | -5/Warlord | Lost 4 allies 22509 | -5/Warlord | Spotted Executioner 22513 | -5/Warlord | Allies destroyed Executioner 22514 | -5/Warlord | Spotted Executioner 22555 | -5/Warlord | Lost 4 allies 22584 | -5/Warlord | Discovered new exit (range 14) 22607 | -5/Warlord | Entered Proximity Caves 22607 | -4/Proximity Caves | Accompanied by 2 allies 22848 | -4/Proximity Caves | Build established: Scavenger-Tank 22895 | -4/Proximity Caves | Learned Research emergency access door positions 22932 | -4/Proximity Caves | Learned Research emergency access door positions 22951 | -4/Proximity Caves | Spotter reported a threat 23259 | -4/Proximity Caves | Discovered exit to Factory (range 4) 23303 | -4/Proximity Caves | Entered Factory 23303 | -4/Factory | Accompanied by 1 ally 23303 | -4/Factory | Evolved 2 slots: Propulsion x2 23304 | -4/Factory | Loaded intel: 309 machine locations 23952 | -4/Factory | Destroyed 8 combat bots 24013 | -4/Factory | Found Adv. Powered Armor 24016 | -4/Factory | Found Adv. Powered Armor 24045 | -4/Factory | Discovered new exit (range 16) 24070 | -4/Factory | Identified exit to Extension 24071 | -4/Factory | Entered Extension 24171 | -4/Extension | Disrupted transfer network 24871 | -4/Extension | Warlord forces began an assault 24980 | -4/Extension | Spotted B-86 Titan 24982 | -4/Extension | Destroyed B-86 Titan 25020 | -4/Extension | Spotted B-86 Titan 25052 | -4/Extension | Lost 13 allies 25159 | -4/Extension | Rescued a captive Derelict 25159 | -4/Extension | Rescued a captive Derelict 25191 | -4/Extension | Rescued A7 25291 | -4/Extension | Rescued a captive Derelict 25334 | -4/Extension | Rescued a captive Derelict 25337 | -4/Extension | Energy Cycler disabled 25338 | -4/Extension | Rescued a captive Derelict 25346 | -4/Extension | Rescued a captive Derelict 25400 | -4/Extension | Lost 4 allies 25466 | -4/Extension | Disrupted transfer network 25506 | -4/Extension | Discovered new exit (range 10) 25509 | -4/Extension | Discovered new exit (range 6) 25522 | -4/Extension | Identified exit to Cetus 25556 | -4/Extension | Entered Cetus 25556 | -4/Cetus | Accompanied by 1 ally (A7) 25561 | -4/Cetus | Acquired a Cetus Manufacturing Module code from A7 25573 | -4/Cetus | Spotted Cetus Guard 25573 | -4/Cetus | Spotted Cetus Guard 25575 | -4/Cetus | Spotted Cetus Guard 25577 | -4/Cetus | Spotted Cetus Guard 25577 | -4/Cetus | Destroyed Cetus Guard 25584 | -4/Cetus | Destroyed Cetus Guard 25590 | -4/Cetus | Destroyed Cetus Guard 25594 | -4/Cetus | Destroyed Cetus Guard 25649 | -4/Cetus | System corruption reached 10% 25668 | -4/Cetus | Cetus Manufacturing Module disabled 25696 | -4/Cetus | Failed to start Cetus Manufacturing Module 25701 | -4/Cetus | Identified Vortex Lance 25710 | -4/Cetus | Escorted A7 to Cetus Mainframe 25730 | -4/Cetus | Discovered new exit (range 16) 25765 | -4/Cetus | Destroyed Cetus Guard 25769 | -4/Cetus | Spotted Cetus Guard 25769 | -4/Cetus | Spotted Cetus Guard 25774 | -4/Cetus | Destroyed Cetus Guard 25777 | -4/Cetus | Destroyed Cetus Guard 25778 | -4/Cetus | Spotted Cetus Guard 25782 | -4/Cetus | Destroyed Cetus Guard 25793 | -4/Cetus | Discovered new exit (range 15) 25801 | -4/Cetus | Met Revision 17 25910 | -4/Cetus | Identified exit to Archives 25914 | -4/Cetus | Entered Archives 25914 | -4/Archives | Accompanied by 1 ally (A7) 25919 | -4/Archives | Received a hacking code to weaken MAIN.C 25932 | -4/Archives | Met Zhirov 25938 | -4/Archives | Reinforcements dispatched to Archives 25951 | -4/Archives | Read partially decrypted archive contents 25954 | -4/Archives | Discovered new exit (range 15) 25975 | -4/Archives | Identified exit to Hub_04(d) 25977 | -4/Archives | Entered Hub_04(d) 25982 | -4/Hub_04(d) | Spotted B-86 Titan 26050 | -4/Hub_04(d) | Destroyed B-86 Titan 26112 | -4/Hub_04(d) | Destroyed 8 combat bots 26592 | -4/Hub_04(d) | Identified exit to Research 26696 | -4/Hub_04(d) | Found Prototype Device 27069 | -4/Hub_04(d) | Entered Research 27069 | -3/Research | Evolved 2 slots: Utility x2 27094 | -3/Research | Lost 6 parts (2p2n2u) 27319 | -3/Research | Identified exit to Research 27360 | -3/Research | Discovered new exit (range 14) 27489 | -3/Research | Identified exit to Testing 27696 | -3/Research | Build established: Scavenger-Mutant 27983 | -3/Research | Found Unknown Launcher 27983 | -3/Research | Identified Gamma Bomb Array 28297 | -3/Research | Entered Testing 28315 | -3/Testing | Identified Adv. EM Shield 28603 | -3/Testing | Spotted Striker 28605 | -3/Testing | Spotted Striker 28852 | -3/Testing | System corruption reached 10% 29363 | -3/Testing | Found Prototype Ballistic Cannon 29375 | -3/Testing | Build established: Scavenger-Tank 29767 | -3/Testing | Entered Research 29767 | -2/Research | Evolved 2 slots: Power x1, Utility x1 29768 | -2/Research | Identified exit to Quarantine 30029 | -2/Research | Spotted B-90 Cyclops 30060 | -2/Research | Destroyed B-90 Cyclops 30143 | -2/Research | Lost 3 parts (3u) 30187 | -2/Research | Discovered new exit (range 12) 30278 | -2/Research | Identified exit to Access 30536 | -2/Research | Entered Access 30536 | -1/Access | Evolved 2 slots: Power x1, Utility x1 30926 | -1/Access | Build established: Generator-Tank 31749 | -1/Access | Lost 3 parts (1p1u1w) 31759 | -1/Access | Destroyed 8 combat bots 31834 | -1/Access | System corruption reached 10% 32286 | -1/Access | First assault squad dispatched 32407 | -1/Access | Discovered new exit (range 8) 32417 | -1/Access | Identified exit to Command 32418 | -1/Access | Entered Command 33168 | -1/Command | First assault squad dispatched 33537 | -1/Command | Lost 3 parts (2p1w) 33802 | -1/Command | Build established: Scavenger-Tank 33822 | -1/Command | Spotted Combat Programmer 33826 | -1/Command | Spotted Combat Programmer 33842 | -1/Command | Destroyed Combat Programmer 33846 | -1/Command | System corruption reached 30% 33855 | -1/Command | Spotted M Guard 33856 | -1/Command | Spotted M Guard 33878 | -1/Command | Destroyed Combat Programmer 33886 | -1/Command | Identified Vortex Chain Reactor 33892 | -1/Command | Destroyed M Guard 33899 | -1/Command | Destroyed M Guard 33899 | -1/Command | All MAIN.C guards destroyed 33902 | -1/Command | Released all parts (13) 33929 | -1/Command | Lost 17 parts (4p7n2u4w) 34467 | -1/Command | Build established: Scavenger-Mutant 34672 | -1/Command | 0b10 Conduit disabled 34673 | -1/Command | Met MAIN.C 34739 | -1/Command | Identified Omega Cannon 34745 | -1/Command | Lost 6 parts (1p4u1w) 34785 | -1/Command | Core integrity fell below 50% 34847 | -1/Command | Released all parts (9) 34869 | -1/Command | Core integrity fell below 20% 34872 | -1/Command | Lost 12 parts (5n6u1w) 34895 | -1/Command | Destroyed by G-73 Enforcer with Phase Gun Last Messages --------------- 34859_ SDSYBQ27N94FQF16XAG>PQU7LXZDKGER/MG5T 34860_ C-45 Heavy ARC bursts open, deploying its payload. 34860_ G-73 Enforcer unfolds itself. 34860_ L-61 Swordsman unfolds itself. 34860_ G-73 Enforcer unfolds itself. 34860_ E-15 Imp unfolds itself. 34861_ Slammed into E-15 Imp. 34864_ E-15 Imp destroyed. 34864_ Acquired 20 matter. 34874_ System corrupted: Energy discharge (-22). 34878_ Acquired 87 matter. 34882_ Acquired Corrupted Cmb. Linear Gravjet. 34883_ C-45 Heavy ARC bursts open, deploying its payload. 34883_ G-73 Enforcer unfolds itself. 34883_ M-36 Artificer unfolds itself. 34883_ Acquired 113 matter. 34886_ Acquired 77 matter. 34895_ K-01 Serf destroyed. Map ----- +----------------------------------------------------+ | ?????????# ?????????????????????????????????????? | | ?????????# ?????????????????????????????????????? | | ?????????# ?????????????????????????????????????? | | ????????## ##???????????????????????????????????? | | ????????# ############## ?????????????????????? | | ????????# T" ?????????????????????? | | ????????# "" ??????????????????????? | | ????????# #???#########?????????????????? | | ????????#### #?? ??????????????????? | | ???????????# #??= ???????????????????? | | ???????????# #? ""????????????????????? | | ???????????# #? """????????????????????? | | ???????????# # """"???????????????????? | | ???????????# # "" ??????????????????? | | ???????????# + #????????????????? | | ???????????# # =%=#????????????????? | | ???????????#####!### [[[=#????????????????? | | ???????????????#|#??? =%!%%#?????????????#### | | ???????????????#=#??? ===*#?????????????# " | | ???????????????# #???? [!%=#?????????????# " | | ????????????####/##########/#####?????????????# | | ????????????# !%! ## #?????????????????# | | ?????????#### =*%% ## #?????????????????# | | ?????????# " * [%= ##!#???############### | | ?????????#" %[[ =##!##### ##### | | ????????## *= !@ =! + + | | ????????## %!##| ! # ##### | | ????????## ! =## # """ #???? | | ????????### # ## # """" #???? | | ???????##### ## # """" #???? | | ####?### # # % ## + ""T #???? | | !!#?#=* ### % ## # #???? | | ! ###= *## # ### % ## # #???? | | / ]=%/ = [ # #???? | | ! ! / % ggg # #???? | | [ / [ g [ / #???? | | =[/ ! [% ########+#####???? | | ] * / "%* % % [ #????? | | "#" %=######## *% ##?# #????? | | ### #??????# = #??# #????? | | ####?#####?????## #??# #????? | | ???????????????#" #??# #????? | | ???????????????## = #??# #????? | | ????????????????# ! #"#########+## #??# #????? | | ????????????????#!= # ! ##+#####+#????? | | ????????????????#!= + # #????? | | ????????????????#=* " # #????? | | ???????########## ^ # # "" #????? | | ???????# ##*= # ! # """ #????? | | ???????# ! ## % " # "R #????? | +----------------------------------------------------+ Best States ------------- Heat Dissipation 169 Energy Generation 122 Energy Capacity 1160 Matter Stores 300 Matter Capacity 300 Sight Range 22 Robot Scan Range 18 Terrain Scan Range 24 Terrain Scan Density 10 Jamming Range 16 Cloak Strength 4 Power Amplification 40 Armor Coverage 1825 Resistance: KI 25 Resistance: TH 15 Resistance: EM 50 Core Shielding 20 Power Shielding 66 Propulsion Shielding 33 Weapon Shielding 100 Point Defense Rating 240 Phase Shifting 15 Evasion (%) 70 Targeting Accuracy 14 Recoil Reduction 8 Kinecelleration 40 Defensive Hacking 10 Item Schematics ----------------- None Robot Schematics ------------------ None Fabricated ------------ Nothing Repaired ---------- Imp. Medium Armor Plating | 50% | -5/Factory Studied --------- Adv. Plasma Cannon | -5/Factory | Hacked Alien Tech Used ----------------- None Achievements -------------- All Kinds Of Bad News Fitting Room Challenges ------------ None Game ------ Seed MultitargetingShiftMonowheel Manual? 0 Play Time 06:21:09 Cumulative 307.8 hours Start 2025.12.01 @ 22:45:01 End 2026.01.02 @ 16:42:05 Sessions 28 Manual Loads 0 Difficulty Rogue Special Mode None Game No. 83 Rogue 77 Adventurer 0 Explorer 6 Win Type - Total 16 Types 6/1/3/1/1/0/2/1/0/1 Lore% 86 Gallery% 77 Achievement% 67 Wizard Run 0 Options --------- Layout 1 ASCII 0 Keyboard 0 Movement Mouse Keybinds 0 Fullscreen 2 Font 24/Smallcaps Map View 50x35 Zoom Use 0% Tactical HUD 1 Map Filters NONE Filters NONE Steam 1 RUN: aeb7cd2f-d1fe-4357-8884-9d36a310d03d